Workbook

Sheet 社区合伙人方案1
B2: 服务产品 | C2: 单价 | D2: 成交量 | E2: 销售额 | F2: 单次成本 | G2: 服务成本 总金额 | H2: 站长收益 | J2: 社区毛利 | L2: 区总收益 | N2: 街道毛利 | P2: 总部收益 | R2: 城市毛利 | T2: 户数 | U2: 年保洁消费 | V2: 占比 | W2: 存量份额 | X2: 月份 | Y2: 单月
B3: 单次卡 | C3: 179 | D3: 60 | E3: =D3*C3 -> 10740 | F3: 105 | G3: =F3*D3 -> 6300 | H3: 0.1 | I3: =E3*H3 -> 1074 | J3: =E3-I3-G3 -> 3366 | L3: 0.03 | M3: =E3*L3 -> 322.2 | N3: =J3-M3 -> 3043.8 | P3: 0.12 | Q3: =E3*P3 -> 1288.8 | R3: =N3-Q3 -> 1755 | T3: 2000 | U3: 6000 | V3: 0.05 | W3: =V3*U3*T3 -> 600000 | X3: 12 | Y3: =W3/X3 -> 50000
B4: 体验卡 | C4: 499 | D4: 30 | E4: 14970 | F4: =F3 -> 105 | G4: =F4*D4*4 -> 12600 | H4: =H3 -> 0.1 | I4: 1497 | J4: 873 | L4: =L3 -> 0.03 | M4: 449.1 | N4: 423.9 | P4: =P3 -> 0.12 | Q4: 1796.4 | R4: -1372.5 | T4: 2000 | U4: 4000 | V4: 0.1 | W4: 800000 | X4: 12 | Y4: 66666.66667
B5: 月卡 | C5: 799 | D5: 10 | E5: 7990 | F5: 105 | G5: =F5*D5*4 -> 4200 | H5: 0.1 | I5: 799 | J5: 2991 | L5: 0.03 | M5: 239.7 | N5: 2751.3 | P5: 0.12 | Q5: 958.8 | R5: 1792.5 | T5: 2000 | U5: 2000 | V5: 0.15 | W5: 600000 | X5: 12 | Y5: 50000
B6: 半年卡 | C6: 2199 | D6: 5 | E6: 10995 | F6: 105 | G6: =F6*D6*12 -> 6300 | H6: 0.1 | I6: 1099.5 | J6: 3595.5 | L6: 0.03 | M6: 329.85 | N6: 3265.65 | P6: 0.12 | Q6: 1319.4 | R6: 1946.25 | W6: =SUM(W3:W5) -> 2000000 | Y6: =SUM(Y3:Y5) -> 166666.6667
B7: 3A年卡 | C7: 4599 | D7: 2 | E7: 9198 | F7: 105 | G7: =F7*D7*26 -> 5460 | H7: 0.1 | I7: 919.8 | J7: 2818.2 | L7: 0.03 | M7: 275.94 | N7: 2542.26 | P7: 0.12 | Q7: 1103.76 | R7: 1438.5
B8: 4A年卡 | C8: 8499 | D8: 2 | E8: 16998 | F8: 105 | G8: =F8*D8*52 -> 10920 | H8: 0.1 | I8: 1699.8 | J8: 4378.2 | L8: 0.03 | M8: 509.94 | N8: 3868.26 | P8: 0.12 | Q8: 2039.76 | R8: 1828.5 | T8: 户数 | U8: 年生活消费 | V8: 占比 | W8: 存量份额 | X8: 月份 | Y8: 单月
B9: 5A年卡 | C9: 16999 | D9: 1 | E9: 16999 | F9: 105 | G9: =F9*D9*104 -> 10920 | H9: 0.1 | I9: 1699.9 | J9: 4379.1 | L9: 0.03 | M9: 509.97 | N9: 3869.13 | P9: 0.12 | Q9: 2039.88 | R9: 1829.25 | T9: 2000 | U9: 120000 | V9: 0.1 | W9: =V9*U9*T9 -> 24000000 | X9: 12 | Y9: =W9/X9 -> 2000000
B10: 厨房深度 | C10: 699 | D10: 5 | E10: 3495 | F10: 265 | G10: =F10*D10 -> 1325 | H10: 0.1 | I10: 349.5 | J10: 1820.5 | L10: 0.03 | M10: 104.85 | N10: 1715.65 | P10: 0.12 | Q10: 419.4 | R10: 1296.25 | T10: 2000 | U10: 60000 | V10: 0.5 | W10: 60000000 | X10: 12 | Y10: 5000000
B11: 浴室深度 | C11: 299 | D11: 5 | E11: 1495 | F11: 160 | G11: 800 | H11: 0.1 | I11: 149.5 | J11: 545.5 | L11: 0.03 | M11: 44.85 | N11: 500.65 | P11: 0.12 | Q11: 179.4 | R11: 321.25 | T11: 2000 | U11: 36000 | V11: 0.4 | W11: 28800000 | X11: 12 | Y11: 2400000
B12: 擦玻璃 | C12: 299 | D12: 20 | E12: 5980 | F12: =F11 -> 160 | G12: 3200 | H12: 0.1 | I12: 598 | J12: 2182 | L12: 0.03 | M12: 179.4 | N12: 2002.6 | P12: 0.12 | Q12: 717.6 | R12: 1285 | W12: =SUM(W9:W11) -> 112800000 | Y12: =SUM(Y9:Y11) -> 9400000
B13: 家电清洗 | C13: 299 | D13: 20 | E13: 5980 | F13: 160 | G13: 3200 | H13: 0.1 | I13: 598 | J13: 2182 | L13: 0.03 | M13: 179.4 | N13: 2002.6 | P13: 0.12 | Q13: 717.6 | R13: 1285
D14: =SUM(D3:D13) -> 160 | E14: 104840 | I14: 10484 | J14: 29131 | M14: =SUM(M3:M13) -> 3145.2 | N14: 25985.8 | Q14: 12580.8 | R14: 13405 | S14: =R14*500 -> 6702500 | T14: 运营毛利
E16: =E14*500 -> 52420000 | F16: 站长×10×区长×50 | M16: =M14*10 -> 31452 | N16: 站长×10 | Q16: =Q14*500 -> 6290400 | R16: 区总×50
B19: 服务产品 | C19: 单品均价 | D19: 成交量 | E19: 销售额 | F19: 单次成本 | G19: 服务成本 总金额 | H19: 站长收益 | J19: 社区毛利 | L19: 区总收益 | N19: 街道毛利 | P19: 总部收益 | R19: 城市毛利
B20: 管道疏通改造 | C20: 200 | D20: 60 | E20: =D20*C20 -> 12000 | F20: 100 | G20: =F20*D20 -> 6000 | H20: 0.1 | I20: =E20*H20 -> 1200 | J20: =E20-I20-G20 -> 4800 | L20: 0.03 | M20: =E20*L20 -> 360 | N20: =J20-M20 -> 4440 | P20: 0.12 | Q20: =E20*P20 -> 1440 | R20: =N20-Q20 -> 3000
B21: 家电维修 | C21: 200 | D21: 30 | E21: 6000 | F21: 100 | G21: 3000 | H21: =H20 -> 0.1 | I21: 600 | J21: 2400 | L21: =L20 -> 0.03 | M21: 180 | N21: 2220 | P21: =P20 -> 0.12 | Q21: 720 | R21: 1500
B22: 房屋家具维修 | C22: 300 | D22: 30 | E22: 9000 | F22: 200 | G22: 6000 | H22: 0.1 | I22: 900 | J22: 2100 | L22: 0.03 | M22: 270 | N22: 1830 | P22: 0.12 | Q22: 1080 | R22: 750
B23: 开锁换锁 | C23: 150 | D23: 60 | E23: 9000 | F23: 100 | G23: 6000 | H23: 0.1 | I23: 900 | J23: 2100 | L23: 0.03 | M23: 270 | N23: 1830 | P23: 0.12 | Q23: 1080 | R23: 750
B24: 洗衣修鞋 | C24: 80 | D24: 100 | E24: 8000 | F24: 40 | G24: 4000 | H24: 0.1 | I24: 800 | J24: 3200 | L24: 0.03 | M24: 240 | N24: 2960 | P24: 0.12 | Q24: 960 | R24: 2000
B25: 皮具护理 | C25: 200 | D25: 30 | E25: 6000 | F25: 100 | G25: 3000 | H25: 0.1 | I25: 600 | J25: 2400 | L25: 0.03 | M25: 180 | N25: 2220 | P25: 0.12 | Q25: 720 | R25: 1500
B26: 生活配送 | C26: 30 | D26: 3000 | E26: 90000 | F26: =C26*0.75 -> 22.5 | G26: 67500 | H26: 0.1 | I26: 9000 | J26: 13500 | L26: 0.03 | M26: 2700 | N26: 10800 | P26: 0.12 | Q26: 10800 | R26: 0
D27: =SUM(D20:D26) -> 3310 | E27: 140000 | I27: 14000 | J27: 30500 | M27: =SUM(M20:M26) -> 4200 | N27: 26300 | Q27: 16800 | R27: 9500 | S27: =R27*500 -> 4750000 | T27: 运营毛利
E29: =E27*500 -> 70000000 | F29: 站长×10×区长×50 | M29: =M27*10 -> 42000 | N29: 站长×10 | Q29: =Q27*500 -> 8400000 | R29: 区总×50
B32: 服务产品 | C32: 单品均价 | D32: 成交量 | E32: 销售额 | F32: 单次成本 | G32: 服务成本 总金额 | H32: 站长收益 | J32: 社区毛利 | L32: 区总收益 | N32: 街道毛利 | P32: 总部收益 | R32: 城市毛利
B33: 管道家具 | C33: 200 | D33: 100 | E33: =D33*C33 -> 20000 | F33: 150 | G33: =F33*D33 -> 15000 | H33: 0.1 | I33: =E33*H33 -> 2000 | J33: =E33-I33-G33 -> 3000 | L33: 0.03 | M33: =E33*L33 -> 600 | N33: =J33-M33 -> 2400 | P33: 0.12 | Q33: =E33*P33 -> 2400 | R33: =N33-Q33 -> 0
B34: 网红家电 | C34: 500 | D34: 100 | E34: 50000 | F34: 300 | G34: 30000 | H34: =H33 -> 0.1 | I34: 5000 | J34: 15000 | L34: =L33 -> 0.03 | M34: 1500 | N34: 13500 | P34: =P33 -> 0.12 | Q34: 6000 | R34: 7500
B35: 家具租售 | C35: 3000 | D35: 10 | E35: 30000 | F35: 2000 | G35: 20000 | H35: 0.1 | I35: 3000 | J35: 7000 | L35: 0.03 | M35: 900 | N35: 6100 | P35: 0.12 | Q35: 3600 | R35: 2500
B36: 门锁安防 | C36: 1000 | D36: 30 | E36: 30000 | F36: 500 | G36: 15000 | H36: 0.1 | I36: 3000 | J36: 12000 | L36: 0.03 | M36: 900 | N36: 11100 | P36: 0.12 | Q36: 3600 | R36: 7500
D37: =SUM(D33:D36) -> 240 | E37: 130000 | I37: 13000 | J37: 37000 | M37: =SUM(M33:M36) -> 3900 | N37: 33100 | Q37: 15600 | R37: 17500 | S37: =R37*500 -> 8750000 | T37: 运营毛利
E39: =E37*500 -> 65000000 | F39: 站长×10×区长×50 | M39: =M37*10 -> 39000 | N39: 站长×10 | Q39: =Q37*500 -> 7800000 | R39: 区总×50

Sheet 方案2
B2: 服务产品 | C2: 单价 | D2: 成交量 | E2: 销售额 | F2: 单次成本 | G2: 服务成本 总金额 | I2: 区总收益 | L2: 城市收益 | O2: 总部收益 | R2: 销售提成 | U2: 管理收益 | X2: 站长净收益 | AA2: 户数 | AB2: 年保洁消费 | AC2: 占比 | AD2: 存量份额 | AE2: 月份 | AF2: 单月
B3: 单次卡 | C3: 199 | D3: 30 | E3: =D3*C3 -> 5970 | F3: 108 | G3: =F3*D3 -> 3240 | I3: 0.02 | J3: =E3*I3 -> 119.4 | L3: 0.03 | M3: =E3*L3 -> 179.1 | O3: 0.05 | P3: =O3*E3 -> 298.5 | R3: 0.1 | S3: =E3*R3 -> 597 | U3: =F3*10% -> 10.8 | V3: =U3*D3 -> 324 | X3: =E3-G3-S3-J3-M3-P3-V3 -> 1212 | AA3: 2000 | AB3: 6000 | AC3: 0.05 | AD3: =AC3*AB3*AA3 -> 600000 | AE3: 12 | AF3: =AD3/AE3 -> 50000
B4: 单次体验卡 | C4: 139 | D4: 300 | E4: =D4*C4 -> 41700 | F4: =F3 -> 108 | G4: =F4*D4 -> 32400 | I4: 0 | J4: =E4*I4 -> 0 | L4: 0 | M4: =E4*L4 -> 0 | O4: 0 | P4: =O4*E4 -> 0 | R4: =R3 -> 0.1 | S4: =E4*R4 -> 4170 | U4: =F4*10% -> 10.8 | V4: =U4*D4 -> 3240 | X4: =E4-G4-S4-J4-M4-P4-V4 -> 1890 | AA4: 2000 | AB4: 4000 | AC4: 0.1 | AD4: =AC4*AB4*AA4 -> 800000 | AE4: 12 | AF4: =AD4/AE4 -> 66666.66667
B5: 3A年卡 | C5: 5199 | D5: 4 | E5: =D5*C5 -> 20796 | F5: =F3 -> 108 | G5: =F5*D5*32 -> 13824 | I5: =I3 -> 0.02 | J5: =E5*I5 -> 415.92 | L5: =L3 -> 0.03 | M5: =E5*L5 -> 623.88 | O5: =O3 -> 0.05 | P5: =O5*E5 -> 1039.8 | R5: =R4 -> 0.1 | S5: =E5*R5 -> 2079.6 | U5: =F5*10% -> 10.8 | V5: =U5*D5*32 -> 1382.4 | X5: =E5-G5-S5-J5-M5-P5-V5 -> 1430.4 | AA5: 2000 | AB5: 2000 | AC5: 0.15 | AD5: 600000 | AE5: 12 | AF5: 50000
B6: 4A年卡 | C6: 9999 | D6: 2 | E6: 19998 | F6: =F5 -> 108 | G6: =F6*D6*64 -> 13824 | I6: =I5 -> 0.02 | J6: 399.96 | L6: =L5 -> 0.03 | M6: 599.94 | O6: =O5 -> 0.05 | P6: 999.9 | R6: =R5 -> 0.1 | S6: 1999.8 | U6: 10.8 | V6: =U6*D6*68 -> 1468.8 | X6: 705.6 | AD6: =SUM(AD3:AD5) -> 2000000 | AF6: =SUM(AF3:AF5) -> 166666.6667
B7: 5A年卡 | C7: 18999 | D7: 1 | E7: 18999 | F7: =F6 -> 108 | G7: =F7*D7*134 -> 14472 | I7: 0.02 | J7: 379.98 | L7: 0.03 | M7: 569.97 | O7: 0.05 | P7: 949.95 | R7: 0.1 | S7: 1899.9 | U7: 10.8 | V7: =U7*D7*134 -> 1447.2 | X7: -720 | Z7: =X5+V5 -> 2812.8
B8: 厨房深度 | C8: 699 | D8: 2 | E8: 1398 | F8: =F7+F9 -> 268 | G8: =F8*D8 -> 536 | I8: 0.02 | J8: 27.96 | L8: 0.03 | M8: 41.94 | O8: 0.05 | P8: 69.9 | R8: 0.1 | S8: 139.8 | U8: 26.8 | V8: =U8*D8 -> 53.6 | X8: 528.8 | Z8: =X6+V6 -> 2174.4 | AA8: 户数 | AB8: 年生活消费 | AC8: 占比 | AD8: 存量份额 | AE8: 月份 | AF8: 单月
B9: 浴室深度 | C9: 299 | D9: 2 | E9: 598 | F9: 160 | G9: 320 | I9: 0.02 | J9: 11.96 | L9: 0.03 | M9: 17.94 | O9: 0.05 | P9: 29.9 | R9: 0.1 | S9: 59.8 | U9: 16 | V9: =U9*D9 -> 32 | X9: 126.4 | Z9: =X7+V7 -> 727.2 | AA9: 2000 | AB9: 120000 | AC9: 0.1 | AD9: 24000000 | AE9: 12 | AF9: 2000000
B10: 擦玻璃 | C10: 299 | D10: 10 | E10: 2990 | F10: =F9 -> 160 | G10: 1600 | I10: 0.02 | J10: 59.8 | L10: 0.03 | M10: 89.7 | O10: 0.05 | P10: 149.5 | R10: 0.1 | S10: 299 | U10: 16 | V10: 160 | X10: 632 | AA10: 2000 | AB10: 60000 | AC10: 0.5 | AD10: 60000000 | AE10: 12 | AF10: 5000000
B11: 家电清洗 | C11: 299 | D11: 10 | E11: 2990 | F11: =F10 -> 160 | G11: 1600 | I11: 0.02 | J11: 59.8 | L11: 0.03 | M11: 89.7 | O11: 0.05 | P11: 149.5 | R11: 0.1 | S11: 299 | U11: 16 | V11: 160 | X11: 632 | AA11: 2000 | AB11: 36000 | AC11: 0.4 | AD11: 28800000 | AE11: 12 | AF11: 2400000
B12: 空调 | C12: 60 | D12: 100 | E12: =C12*D12 -> 6000 | F12: 30 | G12: 3000 | I12: 0.02 | J12: 120 | L12: 0.03 | M12: 180 | O12: 0.05 | P12: 300 | R12: 0.1 | S12: 600 | U12: 3 | V12: 300 | X12: 1500 | AD12: =SUM(AD9:AD11) -> 112800000 | AF12: =SUM(AF9:AF11) -> 9400000
B13: 油烟机 | C13: 159 | D13: 50 | E13: =C13*D13 -> 7950 | F13: 90 | G13: 4500 | I13: 0.02 | J13: 159 | L13: 0.03 | M13: 238.5 | O13: 0.05 | P13: 397.5 | R13: 0.1 | S13: 795 | U13: 9 | V13: 450 | X13: 1410
D14: =SUM(D3:D11) -> 361 | E14: =SUM(E3:E11) -> 115439 | J14: =SUM(J3:J13) -> 1753.78 | M14: =SUM(M3:M13) -> 2630.67 | P14: =SUM(P3:P13) -> 4384.45 | S14: =SUM(S3:S13) -> 12938.9 | V14: =SUM(V3:V13) -> 9018 | X14: =SUM(X3:X13) -> 9347.2
E16: =E14*500 -> 57719500 | F16: 站长×10×区长×50 | J16: =J14*10 -> 17537.8 | M16: =M14*500 -> 1315335 | AA16: 运营毛利
C17: =(C7-C8-C9)/104 -> 173.0865385 | D17: =S7/104 -> 18.26826923
B19: 服务产品 | C19: 单品均价 | D19: 成交量 | E19: 销售额 | F19: 单次成本 | G19: 服务成本 总金额 | I19: 区总收益 | L19: 总部收益 | AA19: 团长数量 | AB19: 支持物料单价 | AC19: 开拓奖金 | AD19: 总支出
B20: 管道疏通改造 | C20: 200 | D20: 60 | E20: =D20*C20 -> 12000 | F20: 100 | G20: =F20*D20 -> 6000 | I20: 0.03 | J20: =E20*I20 -> 360 | L20: 0.12 | M20: =E20*L20 -> 1440 | O20: 5199 | P20: 26 | R20: 6 | S20: =O20/(P20+R20) -> 162.46875 | X20: =E20*#REF! ->  | AA20: 1000 | AB20: 200 | AC20: 100 | AD20: =AA20*AC20+AA20*AB20 -> 300000
B21: 家电维修 | C21: 200 | D21: 30 | E21: 6000 | F21: 100 | G21: 3000 | I21: =I20 -> 0.03 | J21: 180 | L21: =L20 -> 0.12 | M21: 720 | O21: 9999 | P21: 52 | R21: 12 | S21: =O21/(P21+R21) -> 156.234375 | X21: =E21*#REF! -> 
B22: 房屋家具维修 | C22: 300 | D22: 30 | E22: 9000 | F22: 200 | G22: 6000 | I22: 0.03 | J22: 270 | L22: 0.12 | M22: 1080 | O22: 18999 | P22: 104 | R22: 30 | S22: =O22/(P22+R22) -> 141.7835821 | X22: =E22*#REF! ->  | AA22: 开发人力 | AB22: 单人底薪 | AC22: 奖金支出 | AD22: 其他支出 | AE22: 开发周期 | AF22: 总支出
B23: 开锁换锁 | C23: 150 | D23: 60 | E23: 9000 | F23: 100 | G23: 6000 | I23: 0.03 | J23: 270 | L23: 0.12 | M23: 1080 | X23: =E23*#REF! ->  | AA23: 3 | AB23: 3000 | AC23: 10000 | AD23: 5000 | AE23: 2 | AF23: =AA23*AB23*AE23+AC23*AE23+AD23*AE23 -> 48000
B24: 洗衣修鞋 | C24: 80 | D24: 100 | E24: 8000 | F24: 40 | G24: 4000 | I24: 0.03 | J24: 240 | L24: 0.12 | M24: 960 | X24: =E24*#REF! -> 
B25: 皮具护理 | C25: 200 | D25: 30 | E25: 6000 | F25: 100 | G25: 3000 | I25: 0.03 | J25: 180 | L25: 0.12 | M25: 720 | X25: =E25*#REF! -> 
B26: 生活配送 | C26: 30 | D26: 3000 | E26: 90000 | F26: =C26*0.75 -> 22.5 | G26: 67500 | I26: 0.03 | J26: 2700 | L26: 0.12 | M26: 10800 | X26: =E26*#REF! -> 
D27: =SUM(D20:D26) -> 3310 | E27: =SUM(E20:E26) -> 140000 | J27: =SUM(J20:J26) -> 4200 | M27: =SUM(M20:M26) -> 16800 | X27: =SUM(X20:X26) -> 
E29: =E27*500 -> 70000000 | F29: 站长×10×区长×50 | J29: =J27*10 -> 42000 | M29: =M27*500 -> 8400000 | AA29: 运营毛利
B32: 服务产品 | C32: 单品均价 | D32: 成交量 | E32: 销售额 | F32: 单次成本 | G32: 服务成本 总金额 | I32: 区总收益 | L32: 总部收益
B33: 管道家具 | C33: 200 | D33: 100 | E33: =D33*C33 -> 20000 | F33: 150 | G33: =F33*D33 -> 15000 | I33: 0.03 | J33: =E33*I33 -> 600 | L33: 0.12 | M33: =E33*L33 -> 2400 | X33: =E33*#REF! -> 
B34: 网红家电 | C34: 500 | D34: 100 | E34: 50000 | F34: 300 | G34: 30000 | I34: =I33 -> 0.03 | J34: 1500 | L34: =L33 -> 0.12 | M34: 6000 | X34: =E34*#REF! -> 
B35: 家具租售 | C35: 3000 | D35: 10 | E35: 30000 | F35: 2000 | G35: 20000 | I35: 0.03 | J35: 900 | L35: 0.12 | M35: 3600 | X35: =E35*#REF! -> 
B36: 门锁安防 | C36: 1000 | D36: 30 | E36: 30000 | F36: 500 | G36: 15000 | I36: 0.03 | J36: 900 | L36: 0.12 | M36: 3600 | X36: =E36*#REF! -> 
D37: =SUM(D33:D36) -> 240 | E37: =SUM(E33:E36) -> 130000 | J37: =SUM(J33:J36) -> 3900 | M37: =SUM(M33:M36) -> 15600 | X37: =SUM(X33:X36) -> 
E39: =E37*500 -> 65000000 | F39: 站长×10×区长×50 | J39: =J37*10 -> 39000 | M39: =M37*500 -> 7800000 | AA39: 运营毛利
G45: 0.1 | I45: 0.1 | O45: 0.1
B46: 销售价 | C46: 服务项目 | D46: 服务次数 | E46: 服务成本 | F46: 服务成本合计 | G46: 调度费 | I46: 平台佣金 | J46: 结算方式 | L46: 站长利润 | M46: 结算方式 | O46: 销售提成 | P46: 结算方式
B47: 18999 | C47: 5A年卡 | D47: 104 | E47: 108 | F47: =E47*D47 -> 11232 | G47: =E47*10%*D47 -> 1123.2 | I47: =B47*10% -> 1899.9 | J47: =I47/D47 -> 18.26826923 | L47: =B47-F54-G54-I47-O47 -> -720 | M47: =L47/D47 -> -6.923076923 | O47: =B47*10% -> 1899.9 | P47: =O47/D47 -> 18.26826923
C48: 赠送保洁 | D48: 30 | E48: 108 | F48: =E48*D48 -> 3240 | G48: =E48*10%*D48 -> 324
C49: 厨房深度 | D49: 0 | E49: 268 | F49: =E49*D49 -> 0 | G49: =E49*10%*D49 -> 0
C50: 浴室深度 | D50: 0 | E50: 160 | F50: =E50*D50 -> 0 | G50: =E50*10%*D50 -> 0
C51: 擦玻璃 | D51: 0
C52: 油烟机 | D52: 0
F54: =SUM(F47:F50) -> 14472 | G54: =SUM(G47:G50) -> 1447.2
L55: =L47+O47+G47 -> 2303.1
B56: 退款
B57: 销售价 | C57: 服务项目 | D57: 服务次数 | E57: 服务成本 | F57: 服务成本合计 | G57: 调度费 | I57: 平台佣金 | J57: 结算方式 | L57: 站长利润 | M57: 结算方式 | O57: 销售提成 | P57: 结算方式 | R57: 实际服务次数 | S57: 退款金额
B58: 18999 | C58: 5A年卡 | D58: 104 | E58: 108 | F58: =E58*D58 -> 11232 | G58: =E58*10%*D58 -> 1123.2 | I58: =B58*10% -> 1899.9 | J58: =I58/D58 -> 18.26826923 | L58: =B58-F65-G65-I58-O58 -> 468 | M58: =L58/D58 -> 4.5 | O58: =B58*10% -> 1899.9 | P58: =O58/D58 -> 18.26826923 | R58: 10 | S58: =R58*199 -> 1990
C59: 赠送保洁 | D59: 20 | E59: 108 | F59: 2160 | G59: 216 | R59: 1 | S59: =R59*699 -> 699
C60: 厨房深度 | D60: 0 | E60: 268 | F60: 0 | G60: 0 | R60: 1 | S60: =R60*299 -> 299
C61: 浴室深度 | D61: 0 | E61: 160 | F61: 0 | G61: 0 | R61: 1 | S61: =R61*299 -> 299
C62: 擦玻璃 | D62: 0 | R62: 0
C63: 油烟机 | D63: 0 | R63: 0
R64: 退款合计 | S64: =SUM(S58:S63) -> 3287 | U64: =B58-S64 -> 15712
F65: =SUM(F58:F61) -> 13392 | G65: =SUM(G58:G61) -> 1339.2
L66: =L58+O58+G58 -> 3491.1

Sheet Sheet3
B6: 服务产品 | C6: 单价 | D6: 成交量 | E6: 销售额 | F6: 单次成本 | G6: 服务成本 总金额 | H6: 平台管理佣金 | K6: 招聘员工收益 | N6: 站长净收益
B7: 单次卡 | C7: 199 | D7: 30 | E7: =D7*C7 -> 5970 | F7: 108 | G7: =F7*D7 -> 3240 | H7: 0.1 | I7: =H7*E7 -> 597 | K7: =F7*10% -> 10.8 | L7: =K7*D7 -> 324 | N7: =E7-G7-I7-L7 -> 1809
B8: 单次体验卡 | C8: 139 | D8: 300 | E8: 41700 | F8: =F7 -> 108 | G8: 32400 | H8: =H7 -> 0.1 | I8: 4170 | K8: 10.8 | L8: 3240 | N8: =E8-G8-I8-L8 -> 1890
B9: 3A年卡 | C9: 5199 | D9: 4 | E9: 20796 | F9: =F7 -> 108 | G9: =F9*D9*26 -> 11232 | H9: =H7 -> 0.1 | I9: 2079.6 | K9: 10.8 | L9: =K9*D9*32 -> 1382.4 | N9: 6102
B10: 4A年卡 | C10: 9999 | D10: 2 | E10: 19998 | F10: 108 | G10: =F10*D10*52 -> 11232 | H10: =H9 -> 0.1 | I10: 1999.8 | K10: 10.8 | L10: =K10*D10*68 -> 1468.8 | N10: 5297.4
B11: 5A年卡 | C11: 18999 | D11: 1 | E11: 18999 | F11: 108 | G11: =F11*D11*104 -> 11232 | H11: 0.1 | I11: 1899.9 | K11: 10.8 | L11: =K11*D11*134 -> 1447.2 | N11: 4419.9
B12: 厨房深度 | C12: 699 | D12: 2 | E12: 1398 | F12: =F11+F13 -> 268 | G12: 536 | H12: 0.1 | I12: 139.8 | K12: 26.8 | L12: 53.6 | N12: 668.6
B13: 浴室深度 | C13: 299 | D13: 2 | E13: 598 | F13: 160 | G13: 320 | H13: 0.1 | I13: 59.8 | K13: 16 | L13: 32 | N13: 186.2
B14: 擦玻璃 | C14: 299 | D14: 10 | E14: 2990 | F14: =F13 -> 160 | G14: 1600 | H14: 0.1 | I14: 299 | K14: 16 | L14: 160 | N14: 931
B15: 家电清洗 | C15: 299 | D15: 10 | E15: 2990 | F15: =F14 -> 160 | G15: 1600 | H15: 0.1 | I15: 299 | K15: 16 | L15: 160 | N15: 931
B16: 空调 | C16: 60 | D16: 100 | E16: =C16*D16 -> 6000 | F16: 30 | G16: 3000 | H16: 0.1 | I16: 600 | K16: 3 | L16: 300 | N16: 2100
B17: 油烟机 | C17: 159 | D17: 50 | E17: =C17*D17 -> 7950 | F17: 90 | G17: 4500 | H17: 0.1 | I17: 795 | K17: 9 | L17: 450 | N17: 2205
D18: =SUM(D7:D15) -> 361 | E18: =SUM(E7:E15) -> 115439 | L18: =SUM(L7:L17) -> 9018 | N18: =SUM(N7:N17) -> 26540.1
K20: 9018 + 26540.1 = 35621.1
